{"text_format":"1","workbook":"xlsx","n_sheets":2,"sheets":["Pasiūlymas","Subtiekėjai ir priedai"],"not_rendered":{"charts":0,"images":0,"macros":1,"external_links":0,"defined_names":0,"comments":0,"pivot_tables":0},"unopened":[],"bounds":{"document_bytes":16777216,"sheet_cells":100000,"rows_first":2000,"rows_last":500,"rows_between":2000,"halvings":0,"cell_chars":16384,"cell_head_chars":4096},"cells_cut":0,"cells_raw":0,"read":"whole","date_system":"1900"}

{"sheet":"Pasiūlymas","index":0,"n_rows":270,"n_cols":9,"rows_kept":270,"cut":false,"hidden":false,"merged":[[27,0,27,5],[28,0,28,5],[24,0,24,5],[25,0,25,5],[26,0,26,5],[18,0,18,1],[18,2,18,5],[23,0,23,5],[19,0,19,1],[20,0,20,1],[19,2,19,5],[20,2,20,5],[22,0,22,5],[29,0,29,2],[29,3,29,5],[11,0,11,1],[11,2,11,5],[12,0,12,1],[12,2,12,5],[13,0,13,1],[13,2,13,5],[14,0,14,1],[14,2,14,5],[15,0,15,1],[15,2,15,5],[16,0,16,1],[16,2,16,5],[17,0,17,1],[17,2,17,5]]}
[null,null,null,null,null,"Pirkimo sąlygų 2 priedas"]
["PIKIMO SĄLYGŲ 2 PRIEDAS \"PASIŪLYMO FORMA\""]
[]
["MEDICINOS PRIETAISAI"]
[]
["Kam:","Gynybos resursų agentūra prie KAM"]
[]
["Data:","02.09.2022"]
["Nr.:","Nr. 39/09/22"]
["Vieta:","Vilnius"]
[]
["Tiekėjo pavadinimas / Ūkio subjektų grupės nariai:",null,"UAB Jugrita"]
["Tiekėjo kodas (-ai):",null,224344150]
["Tiekėjo adresas (-ai):",null,"J.Kubiliaus g. 6 Vilnius "]
["Tiekėjo PVM mokėtojo kodas(-ai):",null,"LT243441515"]
["Tiekėjo / Ūkio subjektų grupės atsakingo partnerio sąskaitos numeris, banko pavadinimas ir banko kodas (-ai):"]
["Asmens atsakingo už pasiūlymą vardas, pavardė:",null,"Rita Jurgionienė"]
["Asmens atsakingo už pasiūlymą telefono numeris, el. pašto adresas:",null,"tel nr.:  el.p info@jugrita.lt "]
["Tiekėjo / Ūkio subjektų grupės, laimėjimo atveju, pasirašančio sutartį asmens vardas, pavardė, pareigos:",null,"Rita Jurgionienė, direktorė"]
["Tiekėjo / Ūkio subjektų grupės, laimėjimo atveju, už sutarties vykdymą atsakingo asmens vardas, pavardė, telefono numeris, elektroninio pašto adresas:",null,"Rita Jurgionienė, tel. nr el.p  info@jugrita.lt "]
["(1) Tiekėjo / Ūkio subjektų grupės narių, (2) ūkio subjektų, kurių pajėgumais remiamasi, ir (3) jei pašalinimo pagrindai taikomi visiems subtiekėjams - subtiekėjų, kolegialaus priežiūros organo (Stebėtojų tarybos) ir (ar) kolegialaus valdymo organo (Valdybos) narių sąrašas (jei sudaryta) ir (ar) asmuo, kuriam suteikti VPĮ 46 str. 2 d. 2 p. numatyti įgaliojimai",null,null,null,null,null,{"$f":"IF((SUMPRODUCT(--(C21=\"\"))>0), \"Privaloma užpildyti, kai taikomi pašalinimo pagrindai\", \"\")","v":"Privaloma užpildyti, kai taikomi pašalinimo pagrindai"}]
[]
["Tiekėjo patvirtinimai:"]
["1. Šiuo pasiūlymu pažymime, kad sutinkame su visomi pirkimo sąlygomis, nustatytomis:"]
["1.1. viešojo pirkimo dokumentuose"]
["1.2. kituose pirkimo dokumentuose (jų paaiškinimuose, papildymuose)."]
["2. Patvirtiname, kad informacija ir duomenys, pateikti pasiūlyme, yra teisingi ir apima viską, ko reikia tinkamam sutarties įvykdymui"]
["3. Patvirtiname, kad jei pasiūlyme nenurodyti kolegialaus priežiūros/valdymo organų nariai, šie organai juridiniuose asmenyse nėra sudaryti (taikoma, kai pirkimo dokumentuose nustatyti pašalinimo pagrindai)."]
["4. Pasiūlymas galioja iki termino, nustatyto pirkimo dokumentuose."]
["5. Tais atvejais, kai pagal galiojančius teisės aktus tiekėjui nereikia mokėti PVM, jis nurodo priežastis, dėl kurių PVM nemoka:"]
["6. Tiekėjas kainas pateikia, nurodydamas ne daugiau skaičių po kablelio, nei leidžiama pirkimo dokumentuose."]
["1. DALIS","APARATAS DIRBTINĖS PLAUČIŲ VENTILIACIJOS"]
[]
["Tiekėjo pasiūlymas:"]
["Nr.","Pavadinimas","Kiekis","Siūloma reikšmė ekonominio naudingumo balui nustatyti (pagal mato vienetą arba Taip/Ne) ","Mato vienetas","Kaina be PVM, Eur","Suma be PVM, Eur","Prekės modelis/kodas","Gamintojas, šalis"]
["1.","Aparatas dirbtinės plaučių ventiliacijos"]
["1.1.","Aparatas dirbtinės plaučių ventiliacijos",2,null,"vnt.",11538,{"$f":"IF(ISBLANK(F37),\"\", PRODUCT(C37,F37))","v":23076},"MEDUVENT Standard","WEINMANN Emergency\nMedical Technology GmbH + Co. KG"]
["1.1.1.","DPV aparato svoris su baterija",null,2.1,"kg"]
["1.1.2.","Neinvazinės ventiliacijos rėžimas CPAP+PS",null,"Taip","TAIP/NE"]
["1.1.3.","Įvedus paciento amžių ir ūgį aparatas įjungia iš anksto nustatytus startinius parametrus.",null,"Taip","TAIP/NE"]
["1.1.4.","Iškvėpimo įkvėpimo santykis I:E - fiksuotas 1:2",null,"Taip","TAIP/NE"]
["1.1.5.","Garantinis laikotarpis",null,24,"mėn."]
[null,null,null,null,null,"Suma be PVM",{"$f":"IF((COUNT(C37:C42)<>COUNT(G37:G42)),\"\", SUM(G37:G42))","v":23076},{"$f":"IF((COUNT(C37:C42)<>COUNT(G37:G42)),\"Neužpildytos visų objektų kainos\", \"\")","v":""}]
[null,null,null,null,null,"PVM suma",4845.96]
[null,null,null,null,null,"Suma su PVM",{"$f":"IF(ISBLANK(G44), \"\", SUM(G43:G44))","v":27921.96}]
[]
[]
[]
["2. DALIS","MONITORIUS PACIENTO GYVYBINIŲ FUNKCIJŲ SEKIMO"]
[]
["Tiekėjo pasiūlymas:"]
["Nr.","Pavadinimas","Kiekis","Siūloma reikšmė ekonominio naudingumo balui nustatyti (pagal mato vienetą arba Taip/Ne) ","Mato vienetas","Kaina be PVM, Eur","Suma be PVM, Eur","Prekės modelis/kodas","Gamintojas, šalis"]
["2.","Monitorius paciento gyvybinių funkcijų sekimo"]
["2.1.","Monitorius paciento gyvybinių funkcijų sekimo",5,null,"vnt.",null,{"$f":"IF(ISBLANK(F54),\"\", PRODUCT(C54,F54))","v":""}]
["2.1.1.","Monitoriaus raiška",null,null,"vnt."]
["2.1.2.","Atsparumas išoriniams veiksniams ",null,null,"IP reikšmė"]
["2.1.3.","Monitoriaus svoris su baterija ",null,null,"kg"]
["2.1.4.","Atitinka MIL-STD-810G standartą arba lygiavertį",null,null,"TAIP/NE"]
["2.1.5.","Garantija",null,null,"mėn."]
[null,null,null,null,null,"Suma be PVM",{"$f":"IF((COUNT(C54:C59)<>COUNT(G54:G59)),\"\", SUM(G54:G59))","v":""},{"$f":"IF((COUNT(C54:C59)<>COUNT(G54:G59)),\"Neužpildytos visų objektų kainos\", \"\")","v":"Neužpildytos visų objektų kainos"}]
[null,null,null,null,null,"PVM suma"]
[null,null,null,null,null,"Suma su PVM",{"$f":"IF(ISBLANK(G61), \"\", SUM(G60:G61))","v":""}]
[]
[]
[]
["3. DALIS","KAPNOMETRAS PORTATYVINIS"]
[]
["Tiekėjo pasiūlymas:"]
["Nr.","Pavadinimas","Kiekis","Siūloma reikšmė ekonominio naudingumo balui nustatyti (pagal mato vienetą arba Taip/Ne) ","Mato vienetas","Kaina be PVM, Eur","Suma be PVM, Eur","Prekės modelis/kodas","Gamintojas, šalis"]
["3.","Kapnometras portatyvinis"]
["3.1.","Kapnometras portatyvinis",7,null,"vnt.",null,{"$f":"IF(ISBLANK(F71),\"\", PRODUCT(C71,F71))","v":""}]
["3.1.1.","Veikimo temperatūra platesnėse ribose nei nuo 0° C iki +40° C",null,null,"TAIP/NE"]
["3.1.2.","Garantija",null,null,"mėn."]
[null,null,null,null,null,"Suma be PVM",{"$f":"IF((COUNT(C71:C73)<>COUNT(G71:G73)),\"\", SUM(G71:G73))","v":""},{"$f":"IF((COUNT(C71:C73)<>COUNT(G71:G73)),\"Neužpildytos visų objektų kainos\", \"\")","v":"Neužpildytos visų objektų kainos"}]
[null,null,null,null,null,"PVM suma"]
[null,null,null,null,null,"Suma su PVM",{"$f":"IF(ISBLANK(G75), \"\", SUM(G74:G75))","v":""}]
[]
[]
[]
["4. DALIS","ELEKTROKAUTERIS PORTATYVINIS"]
[]
["Tiekėjo pasiūlymas:"]
["Nr.","Pavadinimas","Kiekis","Siūloma reikšmė ekonominio naudingumo balui nustatyti (pagal mato vienetą arba Taip/Ne) ","Mato vienetas","Kaina be PVM, Eur","Suma be PVM, Eur","Prekės modelis/kodas","Gamintojas, šalis"]
["4.","Elektrokauteris portatyvinis"]
["4.1.","Elektrokauteris portatyvinis",1,null,"vnt.",null,{"$f":"IF(ISBLANK(F85),\"\", PRODUCT(C85,F85))","v":""}]
["4.1.1.","Garantija",null,null,"mėn."]
[null,null,null,null,null,"Suma be PVM",{"$f":"IF((COUNT(C85:C86)<>COUNT(G85:G86)),\"\", SUM(G85:G86))","v":""},{"$f":"IF((COUNT(C85:C86)<>COUNT(G85:G86)),\"Neužpildytos visų objektų kainos\", \"\")","v":"Neužpildytos visų objektų kainos"}]
[null,null,null,null,null,"PVM suma"]
[null,null,null,null,null,"Suma su PVM",{"$f":"IF(ISBLANK(G88), \"\", SUM(G87:G88))","v":""}]
[]
[]
[]
["5. DALIS","APARATAS SKYSČIŲ PAŠILDYMO"]
[]
["Tiekėjo pasiūlymas:"]
["Nr.","Pavadinimas","Kiekis","Siūloma reikšmė ekonominio naudingumo balui nustatyti (pagal mato vienetą arba Taip/Ne) ","Mato vienetas","Kaina be PVM, Eur","Suma be PVM, Eur","Prekės modelis/kodas","Gamintojas, šalis"]
["5.","Aparatas skysčių pašildymo"]
["5.1.","Aparatas skysčių pašildymo",5,null,"vnt.",null,{"$f":"IF(ISBLANK(F98),\"\", PRODUCT(C98,F98))","v":""}]
["5.1.1.","Apsaugos nuo dulkių ir vandens lygis",null,null,"IP reikšmė"]
["5.1.2.","10-30 V DC pakrovėjas",null,null,"TAIP/NE"]
["5.1.3.","Svoris su baterija",null,null,"kg"]
["5.1.4.","Garantija pakraunamai baterijai",null,null,"mėn."]
[null,null,null,null,null,"Suma be PVM",{"$f":"IF((COUNT(C98:C102)<>COUNT(G98:G102)),\"\", SUM(G98:G102))","v":""},{"$f":"IF((COUNT(C98:C102)<>COUNT(G98:G102)),\"Neužpildytos visų objektų kainos\", \"\")","v":"Neužpildytos visų objektų kainos"}]
[null,null,null,null,null,"PVM suma"]
[null,null,null,null,null,"Suma su PVM",{"$f":"IF(ISBLANK(G104), \"\", SUM(G103:G104))","v":""}]
[]
[]
[]
["6. DALIS","ATSIURBĖJAS MEDICININIS PORTATYVINIS"]
[]
["Tiekėjo pasiūlymas:"]
["Nr.","Pavadinimas","Kiekis","Siūloma reikšmė ekonominio naudingumo balui nustatyti (pagal mato vienetą arba Taip/Ne) ","Mato vienetas","Kaina be PVM, Eur","Suma be PVM, Eur","Prekės modelis/kodas","Gamintojas, šalis"]
["6.","Atsiurbėjas medicininis portatyvinis"]
["6.1.","Atsiurbėjas medicininis portatyvinis",1,null,"vnt.",null,{"$f":"IF(ISBLANK(F114),\"\", PRODUCT(C114,F114))","v":""}]
["6.1.1.","Svoris su didelės talpos atsiurbimo indu.",null,null,"kg"]
["6.1.2.","Atsiurbimo vakuumo galia",null,null,"I"]
["6.1.3.","Garantija",null,null,"mėn."]
[null,null,null,null,null,"Suma be PVM",{"$f":"IF((COUNT(C114:C117)<>COUNT(G114:G117)),\"\", SUM(G114:G117))","v":""},{"$f":"IF((COUNT(C114:C117)<>COUNT(G114:G117)),\"Neužpildytos visų objektų kainos\", \"\")","v":"Neužpildytos visų objektų kainos"}]
[null,null,null,null,null,"PVM suma"]
[null,null,null,null,null,"Suma su PVM",{"$f":"IF(ISBLANK(G119), \"\", SUM(G118:G119))","v":""}]
[]
[]
[]
["7. DALIS","PRIEMONĖS INTRAOSALINĖS PRIEIGOS"]
[]
["Tiekėjo pasiūlymas:"]
["Nr.","Pavadinimas","Kiekis","Siūloma reikšmė ekonominio naudingumo balui nustatyti (pagal mato vienetą arba Taip/Ne) ","Mato vienetas","Kaina be PVM, Eur","Suma be PVM, Eur","Prekės modelis/kodas","Gamintojas, šalis"]
["7.","Priemonės intraosalinės prieigos"]
["7.1.","Intraosalinė šaudyklė",8,null,"vnt.",null,{"$f":"IF(ISBLANK(F129),\"\", PRODUCT(C129,F129))","v":""}]
["7.1.1.","Svoris",null,null,"kg"]
["7.1.2.","Garantija intraosalinės šaudyklės",null,null,"mėn."]
["7.2.","Intraosalinių adatų rinkinys",8,null,"pakuot.",null,{"$f":"IF(ISBLANK(F132),\"\", PRODUCT(C132,F132))","v":""}]
[null,null,null,null,null,"Suma be PVM",{"$f":"IF((COUNT(C129:C132)<>COUNT(G129:G132)),\"\", SUM(G129:G132))","v":""},{"$f":"IF((COUNT(C129:C132)<>COUNT(G129:G132)),\"Neužpildytos visų objektų kainos\", \"\")","v":"Neužpildytos visų objektų kainos"}]
[null,null,null,null,null,"PVM suma"]
[null,null,null,null,null,"Suma su PVM",{"$f":"IF(ISBLANK(G134), \"\", SUM(G133:G134))","v":""}]
[]
[]
[]
["8. DALIS","APARATAS ULTRAGARSO"]
[]
["Tiekėjo pasiūlymas:"]
["Nr.","Pavadinimas","Kiekis","Siūloma reikšmė ekonominio naudingumo balui nustatyti (pagal mato vienetą arba Taip/Ne) ","Mato vienetas","Kaina be PVM, Eur","Suma be PVM, Eur","Prekės modelis/kodas","Gamintojas, šalis"]
["8.","Aparatas ultragarso"]
["8.1.","Aparatas ultragarso",3,null,"vnt.",null,{"$f":"IF(ISBLANK(F144),\"\", PRODUCT(C144,F144))","v":""}]
["8.1.1.","Programa instaliuota Android ar iOS išmaniuose prietaisuose",null,null,"TAIP/NE"]
["8.1.2.","Reacts programa",null,null,"TAIP/NE"]
["8.1.3.","Vidinis akumuliatorius",null,null,"mAh"]
["8.1.4.","Skenavimo gylis konvekciniam davikliui",null,null,"cm"]
["8.1.5.","Skenavimo gylis linijiniam davikliui",null,null,"cm"]
["8.1.6.","Maksimalus dinaminis diapazonas",null,null,"dB"]
["8.1.7.","Atitikimas standartui RTCA DO-160G",null,null,"TAIP/NE"]
["8.1.8.","Garantija",null,null,"mėn."]
[null,null,null,null,null,"Suma be PVM",{"$f":"IF((COUNT(C144:C152)<>COUNT(G144:G152)),\"\", SUM(G144:G152))","v":""},{"$f":"IF((COUNT(C144:C152)<>COUNT(G144:G152)),\"Neužpildytos visų objektų kainos\", \"\")","v":"Neužpildytos visų objektų kainos"}]
[null,null,null,null,null,"PVM suma"]
[null,null,null,null,null,"Suma su PVM",{"$f":"IF(ISBLANK(G154), \"\", SUM(G153:G154))","v":""}]
[]
[]
[]
["9. DALIS","OTOSKOPAS"]
[]
["Tiekėjo pasiūlymas:"]
["Nr.","Pavadinimas","Kiekis","Siūloma reikšmė ekonominio naudingumo balui nustatyti (pagal mato vienetą arba Taip/Ne) ","Mato vienetas","Kaina be PVM, Eur","Suma be PVM, Eur","Prekės modelis/kodas","Gamintojas, šalis"]
["9.","Otoskopas"]
["9.1.","Otoskopas",6,null,"vnt.",null,{"$f":"IF(ISBLANK(F164),\"\", PRODUCT(C164,F164))","v":""}]
["9.1.1.","Pakrovimo stotelė",null,null,"TAIP/NE"]
["9.1.2.","Garantija",null,null,"mėn."]
[null,null,null,null,null,"Suma be PVM",{"$f":"IF((COUNT(C164:C166)<>COUNT(G164:G166)),\"\", SUM(G164:G166))","v":""},{"$f":"IF((COUNT(C164:C166)<>COUNT(G164:G166)),\"Neužpildytos visų objektų kainos\", \"\")","v":"Neužpildytos visų objektų kainos"}]
[null,null,null,null,null,"PVM suma"]
[null,null,null,null,null,"Suma su PVM",{"$f":"IF(ISBLANK(G168), \"\", SUM(G167:G168))","v":""}]
[]
[]
[]
["10. DALIS","OFTALMOSKOPAS"]
[]
["Tiekėjo pasiūlymas:"]
["Nr.","Pavadinimas","Kiekis","Siūloma reikšmė ekonominio naudingumo balui nustatyti (pagal mato vienetą arba Taip/Ne) ","Mato vienetas","Kaina be PVM, Eur","Suma be PVM, Eur","Prekės modelis/kodas","Gamintojas, šalis"]
["10.","Oftalmoskopas"]
["10.1.","Oftalmoskopas",5,null,"vnt.",null,{"$f":"IF(ISBLANK(F178),\"\", PRODUCT(C178,F178))","v":""}]
["10.1.1.","Pakrovimo stotelė",null,null,"TAIP/NE"]
["10.1.2.","Garantija",null,null,"mėn."]
[null,null,null,null,null,"Suma be PVM",{"$f":"IF((COUNT(C178:C180)<>COUNT(G178:G180)),\"\", SUM(G178:G180))","v":""},{"$f":"IF((COUNT(C178:C180)<>COUNT(G178:G180)),\"Neužpildytos visų objektų kainos\", \"\")","v":"Neužpildytos visų objektų kainos"}]
[null,null,null,null,null,"PVM suma"]
[null,null,null,null,null,"Suma su PVM",{"$f":"IF(ISBLANK(G182), \"\", SUM(G181:G182))","v":""}]
[]
[]
[]
["11. DALIS","RINKINYS VIDINIO KRAUJAVIMO STABDYMUI REBOA"]
[]
["Tiekėjo pasiūlymas:"]
["Nr.","Pavadinimas","Kiekis","Siūloma reikšmė ekonominio naudingumo balui nustatyti (pagal mato vienetą arba Taip/Ne) ","Mato vienetas","Kaina be PVM, Eur","Suma be PVM, Eur","Prekės modelis/kodas","Gamintojas, šalis"]
["11.","Rinkinys vidinio kraujavimo stabdymui REBOA"]
["11.1.","Rinkinys vidinio kraujavimo stabdymui REBOA",2,null,"vnt.",null,{"$f":"IF(ISBLANK(F192),\"\", PRODUCT(C192,F192))","v":""}]
["11.1.1.","Galiojimo terminas nuo atvežimo į sandėlį dienos.",null,null,"proc."]
[null,null,null,null,null,"Suma be PVM",{"$f":"IF((COUNT(C192:C193)<>COUNT(G192:G193)),\"\", SUM(G192:G193))","v":""},{"$f":"IF((COUNT(C192:C193)<>COUNT(G192:G193)),\"Neužpildytos visų objektų kainos\", \"\")","v":"Neužpildytos visų objektų kainos"}]
[null,null,null,null,null,"PVM suma"]
[null,null,null,null,null,"Suma su PVM",{"$f":"IF(ISBLANK(G195), \"\", SUM(G194:G195))","v":""}]
[]
[]
[]
["12. DALIS","RINKINYS SKUBIAI KRANIOTOMIJAI"]
[]
["Tiekėjo pasiūlymas:"]
["Nr.","Pavadinimas","Kiekis","Siūloma reikšmė ekonominio naudingumo balui nustatyti (pagal mato vienetą arba Taip/Ne) ","Mato vienetas","Kaina be PVM, Eur","Suma be PVM, Eur","Prekės modelis/kodas","Gamintojas, šalis"]
["12.","Rinkinys skubiai kraniotomijai"]
["12.1.","Rinkinys skubiai kraniotomijai",1,null,"kompl.",null,{"$f":"IF(ISBLANK(F205),\"\", PRODUCT(C205,F205))","v":""}]
["12.1.1.","Pilnos cheminės pasyvacijos sertifikatas",null,null,"TAIP/NE"]
["12.1.2.","Garantija",null,null,"mėn."]
[null,null,null,null,null,"Suma be PVM",{"$f":"IF((COUNT(C205:C207)<>COUNT(G205:G207)),\"\", SUM(G205:G207))","v":""},{"$f":"IF((COUNT(C205:C207)<>COUNT(G205:G207)),\"Neužpildytos visų objektų kainos\", \"\")","v":"Neužpildytos visų objektų kainos"}]
[null,null,null,null,null,"PVM suma"]
[null,null,null,null,null,"Suma su PVM",{"$f":"IF(ISBLANK(G209), \"\", SUM(G208:G209))","v":""}]
[]
[]
[]
["13. DALIS","RINKINYS CHIRURGINIS KRAUJAGYSLĖMS"]
[]
["Tiekėjo pasiūlymas:"]
["Nr.","Pavadinimas","Kiekis","Siūloma reikšmė ekonominio naudingumo balui nustatyti (pagal mato vienetą arba Taip/Ne) ","Mato vienetas","Kaina be PVM, Eur","Suma be PVM, Eur","Prekės modelis/kodas","Gamintojas, šalis"]
["13.","Rinkinys chirurginis kraujagyslėms"]
["13.1.","Rinkinys chirurginis kraujagyslėms",2,null,"kompl.",null,{"$f":"IF(ISBLANK(F219),\"\", PRODUCT(C219,F219))","v":""}]
["13.1.1.","Pilnos cheminės pasyvacijos sertifikatas",null,null,"TAIP/NE"]
["13.1.2.","Garantija",null,null,"mėn."]
[null,null,null,null,null,"Suma be PVM",{"$f":"IF((COUNT(C219:C221)<>COUNT(G219:G221)),\"\", SUM(G219:G221))","v":""},{"$f":"IF((COUNT(C219:C221)<>COUNT(G219:G221)),\"Neužpildytos visų objektų kainos\", \"\")","v":"Neužpildytos visų objektų kainos"}]
[null,null,null,null,null,"PVM suma"]
[null,null,null,null,null,"Suma su PVM",{"$f":"IF(ISBLANK(G223), \"\", SUM(G222:G223))","v":""}]
[]
[]
[]
["14. DALIS","RETRAKTORIAI"]
[]
["Tiekėjo pasiūlymas:"]
["Nr.","Pavadinimas","Kiekis","Siūloma reikšmė ekonominio naudingumo balui nustatyti (pagal mato vienetą arba Taip/Ne) ","Mato vienetas","Kaina be PVM, Eur","Suma be PVM, Eur","Prekės modelis/kodas","Gamintojas, šalis"]
["14.","Retraktoriai"]
["14.1.","Retraktorius pilvo operacijoms",2,null,"vnt.",null,{"$f":"IF(ISBLANK(F233),\"\", PRODUCT(C233,F233))","v":""}]
["14.1.1.","Pilnos cheminės pasyvacijos sertifikatas",null,null,"TAIP/NE"]
["14.1.2.","Garantija",null,null,"mėn."]
["14.2.","Retraktorius krūtinės ląstos operacijoms",4,null,"vnt.",null,{"$f":"IF(ISBLANK(F236),\"\", PRODUCT(C236,F236))","v":""}]
["14.2.1.","Pilnos cheminės pasyvacijos sertifikatas",null,null,"TAIP/NE"]
["14.2.2.","Garantija",null,null,"mėn."]
[null,null,null,null,null,"Suma be PVM",{"$f":"IF((COUNT(C233:C238)<>COUNT(G233:G238)),\"\", SUM(G233:G238))","v":""},{"$f":"IF((COUNT(C233:C238)<>COUNT(G233:G238)),\"Neužpildytos visų objektų kainos\", \"\")","v":"Neužpildytos visų objektų kainos"}]
[null,null,null,null,null,"PVM suma"]
[null,null,null,null,null,"Suma su PVM",{"$f":"IF(ISBLANK(G240), \"\", SUM(G239:G240))","v":""}]
[]
[]
[]
["15. DALIS","RINKINYS GRĄŽTŲ SKUBIAI KRANIOTOMIJAI"]
[]
["Tiekėjo pasiūlymas:"]
["Nr.","Pavadinimas","Kiekis","Siūloma reikšmė ekonominio naudingumo balui nustatyti (pagal mato vienetą arba Taip/Ne) ","Mato vienetas","Kaina be PVM, Eur","Suma be PVM, Eur","Prekės modelis/kodas","Gamintojas, šalis"]
["15.","Rinkinys grąžtų skubiai kraniotomijai"]
["15.1.","Rinkinys grąžtų skubiai kraniotomijai",1,null,"kompl.",null,{"$f":"IF(ISBLANK(F250),\"\", PRODUCT(C250,F250))","v":""}]
["15.1.1.","Pilnos cheminės pasyvacijos sertifikatas",null,null,"TAIP/NE"]
["15.1.2.","Garantija",null,null,"mėn."]
[null,null,null,null,null,"Suma be PVM",{"$f":"IF((COUNT(C250:C252)<>COUNT(G250:G252)),\"\", SUM(G250:G252))","v":""},{"$f":"IF((COUNT(C250:C252)<>COUNT(G250:G252)),\"Neužpildytos visų objektų kainos\", \"\")","v":"Neužpildytos visų objektų kainos"}]
[null,null,null,null,null,"PVM suma"]
[null,null,null,null,null,"Suma su PVM",{"$f":"IF(ISBLANK(G254), \"\", SUM(G253:G254))","v":""}]
[]
[]
[]
["16. DALIS","DEGUONIES KONCENTRATORIUS"]
[]
["Tiekėjo pasiūlymas:"]
["Nr.","Pavadinimas","Kiekis","Siūloma reikšmė ekonominio naudingumo balui nustatyti (pagal mato vienetą arba Taip/Ne) ","Mato vienetas","Kaina be PVM, Eur","Suma be PVM, Eur","Prekės modelis/kodas","Gamintojas, šalis"]
["16.","Deguonies koncentratorius"]
["16.1.","Deguonies koncentratorius",1,null,"vnt.",null,{"$f":"IF(ISBLANK(F264),\"\", PRODUCT(C264,F264))","v":""}]
["16.1.1.","Pilnai įkrauto akumuliatoriaus darbo laikas esant nenutrūkstamam 2l/min. strautui",null,null,"min."]
["16.1.2.","Svoris (su akumuliatoriumi)",null,null,"kg"]
["16.1.3.","Garantija",null,null,"mėn."]
[null,null,null,null,null,"Suma be PVM",{"$f":"IF((COUNT(C264:C267)<>COUNT(G264:G267)),\"\", SUM(G264:G267))","v":""},{"$f":"IF((COUNT(C264:C267)<>COUNT(G264:G267)),\"Neužpildytos visų objektų kainos\", \"\")","v":"Neužpildytos visų objektų kainos"}]
[null,null,null,null,null,"PVM suma"]
[null,null,null,null,null,"Suma su PVM",{"$f":"IF(ISBLANK(G269), \"\", SUM(G268:G269))","v":""}]

{"sheet":"Subtiekėjai ir priedai","index":1,"n_rows":100,"n_cols":11,"rows_kept":100,"cut":false,"hidden":false,"merged":[[23,0,23,1],[22,0,22,1],[21,0,21,1],[20,0,20,1],[19,0,19,1],[28,0,28,1],[27,0,27,1],[26,0,26,1],[25,0,25,1],[24,0,24,1],[23,2,23,4],[22,2,22,4],[21,2,21,4],[20,2,20,4],[19,2,19,4],[28,2,28,4],[27,2,27,4],[26,2,26,4],[25,2,25,4],[24,2,24,4],[23,5,23,7],[22,5,22,7],[21,5,21,7],[20,5,20,7],[19,5,19,7],[28,5,28,7],[27,5,27,7],[26,5,26,7],[25,5,25,7],[24,5,24,7],[23,8,23,9],[22,8,22,9],[21,8,21,9],[20,8,20,9],[19,8,19,9],[28,8,28,9],[27,8,27,9],[26,8,26,9],[25,8,25,9],[24,8,24,9],[16,0,16,10],[18,8,18,9],[18,5,18,7],[18,2,18,4],[18,0,18,1],[13,0,13,1],[12,0,12,1],[11,0,11,1],[10,0,10,1],[13,8,13,9],[12,8,12,9],[11,8,11,9],[10,8,10,9],[4,0,4,1],[5,5,5,7],[5,0,5,1],[9,0,9,1],[13,2,13,4],[12,2,12,4],[11,2,11,4],[10,2,10,4],[9,2,9,4],[13,5,13,7],[12,5,12,7],[11,5,11,7],[10,5,10,7],[9,5,9,7],[1,0,2,10],[30,0,30,9],[14,5,14,7],[8,5,8,7],[7,5,7,7],[6,5,6,7],[14,8,14,9],[8,8,8,9],[7,8,7,9],[6,8,6,9],[14,0,14,1],[8,0,8,1],[7,0,7,1],[6,0,6,1],[14,2,14,4],[8,2,8,4],[7,2,7,4],[9,8,9,9],[6,2,6,4],[5,2,5,4],[5,8,5,9],[4,8,4,9],[4,5,4,7],[4,2,4,4],[32,0,32,9],[34,7,34,9],[34,1,34,6],[45,7,45,9],[42,7,42,9],[37,7,37,9],[36,7,36,9],[35,7,35,9],[44,7,44,9],[43,7,43,9],[41,7,41,9],[40,7,40,9],[39,7,39,9],[38,7,38,9],[45,1,45,6],[44,1,44,6],[47,0,47,9],[52,4,52,9],[50,4,50,9],[52,0,52,3],[50,0,50,3],[38,1,38,6],[37,1,37,6],[36,1,36,6],[35,1,35,6],[43,1,43,6],[42,1,42,6],[41,1,41,6],[40,1,40,6],[39,1,39,6]]}
[]
["Ūkio subjektai (įskaitant kvazisubtiekėjus - fiziniai asmenys, kuriuos ketinama įdarbinti pirkimo laimėjimo atveju), kurių pajėgumais tiekėjas remiasi, kad atitiktų keliamus kvalifikacijos reikalavimus:"]
[]
[]
["Pavadinimas*",null,"Kodas, adresas",null,null,"Perduodami įsipareigojimai",null,null,"Perduodamų įsipareigojimų dalis nuo visos pirkimo sutarties (Eur arba %)",null,"Kval. Reikalavimo Nr."]
[]
[]
[]
[]
[]
[]
[]
[]
[]
[]
[]
["Subtiekėjams / subteikėjams / subrangovams numatomos perduoti veiklos (privaloma nurodyti) ir šių ūkio subjektų pavadinimai (jei žinomi):"]
[]
["Pavadinimas",null,"Kodas, adresas",null,null,"Perduodama veikla*",null,null,"Perduodamos veiklos dalis nuo visos pirkimo sutarties (Eur arba %)"]
[]
[]
[]
[]
[]
[]
[]
[]
[]
[]
[]
[]
[]
["Kartu su pasiūlymu pateikiami šie dokumentai:"]
[]
["Nr.","Dokumento  pavadinimas",null,null,null,null,null,"Dokumentas yra konfidencialus? Taip/Ne"]
["1","Jungtinės veiklos kopija (jei taikoma)",null,null,null,null,null,"netaikoma"]
["2","Europos bendrasis viešųjų pirkimų dokumentas",null,null,null,null,null,"TAIP"]
["3","Subtiekimo sutartis, ketinimų protokolas, preliminarios sutartys ar kiti dokumentai, patvirtinantys, kad laimėjus pirkimą tiekėjui bus prieinami kitų ūkio subjektų ištekliai (jei pasitelkiami kvalifikacijos atitikimui)",null,null,null,null,null,"nepasitelkiami"]
["4","Pasiūlymo galiojimo užtikrinimas"]
["5","Dokumentai reikalaujami pirkimo sąlygų priede \"Kokybės kriterijai ir jų vertinimas\"",null,null,null,null,null,"TAIP"]
["6","Pasiūlymo atitikimą pirkimo sąlygų techninei specifikacijai pagrindžiantys dokumentai",null,null,null,null,null,"TAIP"]
[7,"Siūlomos prekės informacija",null,null,null,null,null,"TAIP"]
[]
[]
[]
[]
[]
["Pasiūlyme nurodyta Prekės kaina, išskyrus jos sudedamąsias dalis, subtiekėjai, taip pat kita informacija, kuri teisės aktų nustatyta tvarka turi būti skelbiama arba kitokiu būdu viešai prieinama visuomenei, nėra laikoma konfidencialia informacija. Konfidencialią informaciją sudaro, visų pirma, komercinė (gamybinė) paslaptis ir konfidencialieji pasiūlymų aspektai. Informacija, kurią viešai skelbti įpareigoja Lietuvos Respublikos įstatymai, negali būti tiekėjo nurodoma kaip konfidenciali, todėl, tiekėjui nurodžius tokią informaciją kaip konfidencialią, perkančioji organizacija turi teisę ją skelbti. Jei tiekėjas nenurodo konfidencialios informacijos, laikoma, kad konfidencialios informacijos tiekėjo pasiūlyme nėra. Vadovaujantis Informacijos viešinimo Centrinėje viešųjų pirkimų informacinėje sistemoje tvarkos aprašu, patvirtintu Viešųjų pirkimų tarnybos direktoriaus 2017 m. birželio 19 d. įsakymu Nr. 1S-91 „Dėl Informacijos viešinimo Centrinėje viešųjų pirkimų informacinėje sistemoje tvarkos aprašo patvirtinimo“, perkančioji organizacija laimėjusio dalyvio pasiūlymą, išskyrus informaciją, kurią tiekėjas nurodė kaip konfidencialią, paskelbs CVP IS."]
[]
[]
["Tiekėjo arba jo įgalioto asmens pareigų pavadinimas:",null,null,null,"Direktorė"]
[]
["Pasirašančio asmens vardas ir pavardė:",null,null,null,"Rita Jurgionienė"]
[]
[]
[]
[]
[]
[]
[]
[]
[]
[]
[]
[]
[]
[]
[]
[]
[]
[]
[]
[]
[]
[]
[]
[]
[]
[]
[]
[]
[]
[]
[]
[]
[]
[]
[]
[]
[]
[]
[]
[]
[]
[]
[]
[]
[]
[]
["1651 2022-07-09 13:19:47"]